Cogmind - Beta 13 @@@ ROGUE MODE // 2024.06.25 @ 20:53:35 Player: Sionnis Result: Destroyed by Combat Programmer with EMDS Performance ------------- Evolutions (9) 4500 Regions Visited (22) 4400 Robots Destroyed (105) 525 Value Destroyed (2465) 2465 Prototype IDs (219) 4380 Alien Tech Used (2) 400 Bonus (8756) 8756 TOTAL SCORE: 25426 Bonus ------- High Alert Combat Kills 36 Follower Combat Kills 228 Entered DSFs 500 Met Data Miner 300 Used Data Conduit 3000 Met Zhirov 300 Pursued by Intercept 500 Acquired SGEMP 2000 Delivered SGEMP 2000 Friendly Fire -108 Cogmind --------- Core Integrity 0/1600 Matter 68/300 Energy 100/100 System Corruption 36% Temperature Warm (187) Movement Core (50) Location -1/Access Parts ------- > --- POWER (1) -------- (None) > --- PROPULSION (7) --- (None) > --- UTILITY (14) ----- Advanced Weight Redist. System Machine Analyzer Enhanced Optical Array Advanced Signal Interpreter Hacking Suite > --- WEAPON (3) ------- (None) > --- INVENTORY (5) ---- Light Quantum Reactor Q-thruster Z-bomb Delivery System Peak State ------------ > --- POWER ------------ Light Quantum Reactor > --- PROPULSION ------- Improved VTOL Module Q-thruster Q-thruster Cooled Q-thruster Cooled Q-thruster Cooled Q-thruster Cooled Q-thruster > --- UTILITY ---------- Experimental Power Amplifier Medium Storage Unit Gravity Neutralizer Machine Analyzer Enhanced Optical Array Experimental Sensor Array Advanced Signal Interpreter Transmission Jammer Advanced Powered Armor Hacking Suite Advanced Hacking Suite Experimental Hacking Suite Experimental System Shield > --- WEAPON ----------- Enhanced Quantum Rifle Null Cannon Ionic Axe > --- INVENTORY -------- Light Quantum Reactor Q-thruster Q-thruster Q-thruster Advanced Weight Redist. System Transdimensional Reconstructor Fusion Bomb Launcher Z-bomb Delivery System [Rating: 180] Favorites ----------- Power Light Angular Momentum Engine Engine Light Angular Momentum Engine Power Core Micro Nuclear Core Reactor Light Antimatter Reactor Propulsion Light Treads Treads Light Treads Wheel Wheel Flight Unit Improved VTOL Module Utility Hacking Suite Device Gravity Neutralizer Storage Large Storage Unit Processor Targeting Computer Hackware Hacking Suite Protection Improved Medium Armor Plating Weapon Flak Gun Energy Gun Spread Laser Energy Cannon Null Cannon Ballistic Gun Flak Gun Launcher Heavy Missile Launcher Impact Weapon Impact Mace Slashing Weapon Scythe Build | -11 -10 -9 -9 -9 -8 -8 -7 -7 -7 -6 -6 -5 -5 -5 -5 -4 -4 -4 -3 -3 -2 -1 ------- Run | Yrd Mat Mat Min Exi Min Mat Fac Low Dat Pro Fac Fac Upp Upp Zhi Pro Fac DSF Res Tes Res Acc Slots Evolved 18 | . . 2 . . . 2 2 . . . 2 2 . . . . 2 . 2 . 2 2 Power . | . . . . . . . . . . . . . . . . . . . . . . . Propulsion 5 | . . 1 . . . 1 . . . . . 1 . . . . 1 . . . 1 . Utility 12 | . . 1 . . . 1 2 . . . 2 1 . . . . 1 . 2 . 1 1 Weapon 1 | . . . . . . . . . . . . . . . . . . . . . . 1 Parts Attached 143 | 3 6 7 3 . 5 27 15 2 1 1 3 15 1 . 2 5 2 3 16 9 1 16 Power 13 | 1 1 1 . . 1 1 2 . 1 . . 1 . . . 1 . . 2 . . 1 Engine 8 | 1 1 1 . . 1 1 1 . . . . 1 . . . 1 . . . . . . Core 3 | . . . . . . . 1 . 1 . . . . . . . . . 1 . . . Reactor 2 | . . . . . . . . . . . . . . . . . . . 1 . . 1 Propulsion 49 | 2 . 2 . . 2 10 6 . . . 1 5 . . . . 1 2 9 . . 9 Treads 9 | 2 . 2 . . . 5 . . . . . . . . . . . . . . . . Leg . | . . . . . . . . . . . . . . . . . . . . . . . Wheel 2 | . . . . . 2 . . . . . . . . . . . . . . . . . Hover . | . . . . . . . . . . . . . . . . . . . . . . . Flight 38 | . . . . . . 5 6 . . . 1 5 . . . . 1 2 9 . . 9 Utility 42 | . 3 3 1 . . 6 4 1 . 1 2 4 1 . 2 1 1 . 4 5 1 2 Device 14 | . 1 . . . . 1 1 1 . 1 1 2 . . 1 . . . 1 1 1 2 Storage 4 | . 1 1 . . . 2 . . . . . . . . . . . . . . . . Processor 7 | . 1 . . . . 1 . . . . 1 1 . . . . . . 1 2 . . Hackware 11 | . . 1 . . . 1 3 . . . . . 1 . 1 1 . . 1 2 . . Protection 6 | . . 1 1 . . 1 . . . . . 1 . . . . 1 . 1 . . . Artifact . | . . . . . . . . . . . . . . . . . . . . . . . Weapon 39 | . 2 1 2 . 2 10 3 1 . . . 5 . . . 3 . 1 1 4 . 4 Energy Gun 4 | . . 1 1 . 1 . . . . . . . . . . . . . . . . 1 Energy Cannon 3 | . . . . . . . . . . . . . . . . . . . . 1 . 2 Ballistic Gun 8 | . 2 . 1 . . 5 . . . . . . . . . . . . . . . . Ballistic Cannon . | . . . . . . . . . . . . . . . . . . . . . . . Launcher 10 | . . . . . 1 . . 1 . . . 3 . . . 2 . 1 . 1 . 1 Special Weapon . | . . . . . . . . . . . . . . . . . . . . . . . Impact Weapon 5 | . . . . . . . 1 . . . . 1 . . . . . . 1 2 . . Slashing Weapon 9 | . . . . . . 5 2 . . . . 1 . . . 1 . . . . . . Piercing Weapon . | . . . . . . . . . . . . . . . . . . . . . . . Special Melee Weapon . | . . . . . . . . . . . . . . . . . . . . . . . Unidentified Prototypes 4 | . . . . . . . 1 . . . . . . . 1 . . . . 2 . . Parts Lost 49 | . . . . . 2 1 3 . 3 2 . 7 . . . 2 . 2 3 1 . 23 Power 5 | . . . . . . . 1 . 2 . . . . . . . . 1 . . . 1 Propulsion 22 | . . . . . 2 1 2 . 1 1 . 3 . . . . . 1 2 . . 9 Utility 14 | . . . . . . . . . . 1 . 1 . . . 1 . . 1 1 . 9 Weapon 8 | . . . . . . . . . . . . 3 . . . 1 . . . . . 4 Highest Loss Streak 23 | . . . . . 1 1 2 . 3 4 . 4 . . . 2 . 2 3 1 . 23 To Critical Strikes . | . . . . . . . . . . . . . . . . . . . . . . . Average Slot Usage (%) 92 | . 97 99 100 100 91 93 97 93 90 67 62 79 88 88 87 85 84 84 92 95 86 76 Engine 7 | . 14 11 11 11 11 9 3 . . . . 5 5 5 5 5 5 . . . . . Treads 18 | . 28 32 33 33 23 27 . . . . . . . . . . . . . . . . Flight 9 | . . . . . . . 29 30 29 15 15 18 17 17 17 17 21 21 26 28 26 22 Device 3 | . . . . . . . 5 7 7 13 11 8 11 11 14 17 15 15 13 11 13 15 Storage 8 | . 11 11 11 11 11 9 7 7 7 7 6 5 5 5 5 5 5 5 4 4 4 3 Processor 5 | . 12 8 . . . 9 . . . . 1 10 11 11 11 11 10 10 10 11 13 12 Hackware 13 | . . 11 11 11 11 9 29 30 30 23 20 17 17 17 17 15 15 15 16 19 17 13 Protection 4 | . . 2 11 11 11 9 . . . . . 4 5 5 1 . . 5 6 7 4 2 Energy Gun 3 | . . 9 11 11 11 . . . . . . . . . . . . . . . . . Ballistic Gun 10 | . 27 12 11 11 11 16 . . . . . . . . . . . . . . . . Slashing Weapon 3 | . . . . . . . 14 7 7 7 6 3 5 5 5 4 5 5 4 4 4 3 Naked Turns . | . . . . . . . . . . . . . . . . . . . . . . . Heaviest Build 64 | 3 31 40 41 41 43 64 22 20 20 14 14 36 33 33 34 34 35 35 49 48 47 54 Greatest Support 80 | 40 40 60 60 60 60 80 29 20 20 24 22 43 43 43 43 43 47 47 50 51 47 73 Greatest Overweight (x) 5 | . . . . . 4 2 1 . 1 1 1 . . . . . . . 1 1 . 5 Average Overweight (x) . | . . . . . . . . . . . . . . . . . . . . . . . Largest Inventory Capacity 20 | 5 15 15 15 15 15 20 10 10 10 10 10 10 10 10 10 10 10 10 10 10 10 10 Average Capacity 13 | 5 13 15 15 15 15 18 10 10 10 10 10 10 10 10 10 10 10 10 10 10 10 9 Most Carried 20 | 1 12 12 13 12 15 20 10 10 10 8 7 8 5 8 10 10 9 10 10 10 9 10 Average Carried 10 | . 7 9 12 12 13 17 9 9 7 7 7 5 4 6 9 9 8 8 8 9 9 7 Final Capacity 15 | 5 15 15 15 15 15 10 10 10 10 10 10 10 10 10 10 10 10 10 10 10 10 5 Final Carried 15 | 1 8 12 12 12 15 7 10 10 8 7 7 4 5 8 10 10 8 8 9 10 9 3 Class Distribution -------------------- 40% | Mutant 27% | Hacker-Sprinter 11% | Scavenger-Mutant 10% | Commander-Mutant 6% | Hacker-Mutant Dominant Class ---------------- Mutant | -10/Materials Mutant | -9/Materials Commander-Mutant | -9/Mines Commander-Mutant | -9/Exiles Mutant | -8/Mines Scavenger-Mutant | -8/Materials Hacker-Sprinter | -7/Factory Hacker-Sprinter | -7/Lower Caves Hacker-Sprinter | -7/Data Miner Hacker-Mutant | -6/Proximity Caves Hacker-Mutant | -6/Factory Hacker-Mutant | -5/Factory Hacker-Sprinter | -5/Upper Caves Hacker-Sprinter | -5/Upper Caves Hacker-Sprinter | -5/Zhirov Hacker-Sprinter | -4/Proximity Caves Hacker-Sprinter | -4/Factory Hacker-Sprinter | -4/DSF Hacker-Sprinter | -3/Research Hacker-Sprinter | -3/Testing Hacker-Sprinter | -2/Research Hacker-Ninja | -1/Access Resources | -11 -10 -9 -9 -9 -8 -8 -7 -7 -7 -6 -6 -5 -5 -5 -5 -4 -4 -4 -3 -3 -2 -1 ----------- Run | Yrd Mat Mat Min Exi Min Mat Fac Low Dat Pro Fac Fac Upp Upp Zhi Pro Fac DSF Res Tes Res Acc Matter Collected 2375 | 179 258 188 104 . 219 523 225 45 . 10 . 115 87 46 102 70 . 39 33 132 . . Remotely . | . . . . . . . . . . . . . . . . . . . . . . . Salvage Created 2933 | . 328 292 95 . 370 849 182 28 . 60 . 84 . . 440 60 . 64 33 . . 48 Parts 213 | . 40 24 15 . 32 60 11 4 . 1 . 5 . . 2 8 . 8 3 . . . Haulers Intercepted 5 | . . . . . . 3 2 . . . . . . . . . . . . . . . Recyclers Shooed 5 | . 1 1 . . . 3 . . . . . . . . . . . . . . . . Parts Field Recycled . | . . . . . . . . . . . . . . . . . . . . . . . Retrieved Matter . | . . . . . . . . . . . . . . . . . . . . . . . Parts Self-Destructed 14 | . . . . . . . . 7 . . . . . . 2 5 . . . . . . Prevented 1 | . . . . . . . . . . . . . . . . 1 . . . . . . Kills | -11 -10 -9 -9 -9 -8 -8 -7 -7 -7 -6 -6 -5 -5 -5 -5 -4 -4 -4 -3 -3 -2 -1 ------- Run | Yrd Mat Mat Min Exi Min Mat Fac Low Dat Pro Fac Fac Upp Upp Zhi Pro Fac DSF Res Tes Res Acc Combat Hostiles Destroyed 72 | . 10 6 7 . 15 14 . 4 . . . 6 . . . 6 . 3 . . . 1 Melee 4 | . . . . . . . . . . . . 1 . . . 2 . 1 . . . . Guns 49 | . 10 6 7 . 12 14 . . . . . . . . . . . . . . . . AOE 17 | . . . . . 3 . . 4 . . . 5 . . . 3 . 2 . . . . Classes Destroyed 16 | . 6 2 . . 3 2 . . . . . 1 . . . 1 . 1 . . . . Worker 5 | . 1 . . . 2 1 . . . . . 1 . . . . . . . . . . Tunneler 1 | . . . . . 1 . . . . . . . . . . . . . . . . . Hauler 5 | . . . . . . 3 2 . . . . . . . . . . . . . . . Recycler 5 | . 1 1 . . . 3 . . . . . . . . . . . . . . . . Mechanic 1 | . . . . . . 1 . . . . . . . . . . . . . . . . Operator 6 | . 1 2 . . . 2 1 . . . . . . . . . . . . . . . Drone 1 | . . . . . . . . . . . . . . . . 1 . . . . . . Watcher 10 | . 3 1 . . . 3 2 . . . . . . . . . . . 1 . . . Swarmer 42 | . 9 . 7 . 7 6 . 4 . . . 4 . . . 5 . . . . . . Cutter 3 | . . . . . . . . . . . . . . . . . . 3 . . . . Grunt 14 | . 1 3 . . 6 4 . . . . . . . . . . . . . . . . Brawler 1 | . . . . . 1 . . . . . . . . . . . . . . . . . Duelist 1 | . . 1 . . . . . . . . . . . . . . . . . . . . Sentry 6 | . . 2 . . . 4 . . . . . . . . . . . . . . . . Hunter 1 | . . . . . 1 . . . . . . . . . . . . . . . . . Programmer 2 | . . . . . . . . . . . . 2 . . . . . . . . . . Tracker 1 | . . . . . . . . . . . . . . . . . . . . . . 1 Decomposer 3 | . . . . . . . . . . 3 . . . . . . . . . . . . Best Kill Streak 7 | . 7 2 3 . 4 5 3 4 . . . 5 . . . 5 . 3 1 . . 1 Combat Bots Only 6 | . 6 2 3 . 4 4 . 4 . . . 4 . . . 5 . 3 . . . 1 Max Kills in Single Turn 5 | . 2 1 1 . 3 2 1 2 . 1 . 5 . . . 3 . 2 1 . . 1 Gunslinging 1 | . . . . . 1 . . . . . . . . . . . . . . . . . Exploded 4 | . . . . . 3 . . 2 . . . 4 . . . 3 . 2 . . . . Melee 1 | . . . . . . . . . . . . 1 . . . 1 . 1 . . . . Uniques/NPCs Destroyed . | . . . . . . . . . . . . . . . . . . . . . . . Combat | -11 -10 -9 -9 -9 -8 -8 -7 -7 -7 -6 -6 -5 -5 -5 -5 -4 -4 -4 -3 -3 -2 -1 -------- Run | Yrd Mat Mat Min Exi Min Mat Fac Low Dat Pro Fac Fac Upp Upp Zhi Pro Fac DSF Res Tes Res Acc Hostile Shots Fired 605 | . 24 18 38 . 52 35 68 6 7 21 18 34 . 7 . 19 . 52 . 35 2 169 Missed 239 | . 7 3 17 . 21 13 43 1 1 6 13 18 . 7 . 8 . 34 . 16 . 31 Damage Taken 7598 | . 154 206 181 . 453 268 278 72 283 271 37 782 . . . 233 . 234 359 407 56 3324 Core 2499 | . 18 22 25 . 52 . 84 17 104 170 22 226 . . . 73 . 38 105 31 . 1512 Absorbed by Shields . | . . . . . . . . . . . . . . . . . . . . . . . Redirected to Shielding 248 | . . . . . . . . . . . . 70 . . . . . 45 104 29 . . Regen/Repaired (Parts) 23 | . . . . . . . 23 . . . . . . . . . . . . . . . Core Remaining (%) 86 | 100 92 . . . 75 100 . . . 46 97 . . . . 70 . 96 . 89 100 . Volleys Fired 157 | . 20 25 18 . 35 38 . 2 . . . 7 . . . 1 . 1 . . . 10 Largest 2 | . 2 2 2 . 2 2 . 1 . . . 1 . . . 1 . 1 . . . 2 Hottest 195 | . 46 88 93 . 93 93 . 39 . . . 80 . . . 39 . 39 . . . 195 Shots Fired 270 | . 40 47 26 . 60 75 . 2 . . . 7 . . . 1 . 1 . . . 11 Gun 248 | . 40 47 26 . 59 75 . . . . . . . . . . . . . . . 1 Cannon 6 | . . . . . . . . . . . . . . . . . . . . . . 6 Launcher 16 | . . . . . 1 . . 2 . . . 7 . . . 1 . 1 . . . 4 Special . | . . . . . . . . . . . . . . . . . . . . . . . Kinetic 190 | . 40 28 18 . 34 70 . . . . . . . . . . . . . . . . Thermal 64 | . . 19 8 . 25 5 . . . . . . . . . . . . . . . 7 Explosive 16 | . . . . . 1 . . 2 . . . 7 . . . 1 . 1 . . . 4 Electromagnetic . | . . . . . . . . . . . . . . . . . . . . . . . Robot Hit Streak 20 | . 20 14 10 . 9 19 . . . . . 1 . . . 2 . . . . . 1 Robot Miss Streak 12 | . 2 3 6 . 11 12 . 1 . . . . . . . . . 1 . . . 3 Penetration Max . | . . . . . . . . . . . . . . . . . . . . . . . Secondary Targets 8 | . 3 . 1 . 1 3 . . . . . . . . . . . . . . . . Max Gunslinging Chain 1 | . 1 . 1 . 1 1 . . . . . . . . . . . . . . . . Shots Hit Robots 243 | . 28 37 20 . 54 65 10 . 1 3 . 3 . . 10 5 . 1 1 . . 5 Core Hits 272 | . 18 34 19 . 73 97 3 4 . . . 9 . . 3 5 . 3 1 . . 3 Critical Kills 1 | . . . . . . . . . . . . . . . . . . . . . . 1 Critical Parts Destroyed . | . . . . . . . . . . . . . . . . . . . . . . . Critical Strikes 5 | . . . . . . . 2 . . . . 1 . . . . . . . . . 2 Meltdown 1 | . . . . . . . . . . . . . . . . . . . . . . 1 Sever 4 | . . . . . . . 2 . . . . 1 . . . . . . . . . 1 Melee Attacks 168 | . . . . . . 3 57 . 19 3 1 40 . 1 11 7 . 1 4 11 1 9 Impact 33 | . . . . . . . . . . . . 23 . . 2 7 . . . 1 . . Slashing 135 | . . . . . . 3 57 . 19 3 1 17 . 1 9 . . 1 4 10 1 9 Piercing . | . . . . . . . . . . . . . . . . . . . . . . . Sneak Attacks 9 | . . . . . . 2 3 . 1 3 . . . . . . . . . . . . Combat Hostiles . | . . . . . . . . . . . . . . . . . . . . . . . Follow-up Attacks 2 | . . . . . . . 1 . . . . . . . 1 . . . . . . . Damage Inflicted 8149 | . 484 594 343 . 1108 1397 495 329 76 223 . 818 . . 1062 547 . 102 85 . . 486 Guns 3409 | . 481 585 343 . 798 1202 . . . . . . . . . . . . . . . . Cannons 102 | . . . . . . . . . . . . . . . . . . . . . . 102 Explosions 2048 | . . . . . 300 . . 329 . . . 741 . . . 379 . 56 . . . 243 Melee 2537 | . . . . . . 164 495 . 76 223 . 77 . . 1062 168 . 46 85 . . 141 Ramming 53 | . 3 9 . . 10 31 . . . . . . . . . . . . . . . . Kinetic 2672 | . 481 290 259 . 501 1141 . . . . . . . . . . . . . . . . Thermal 1024 | . . 295 84 . 297 61 . . . . . 185 . . . . . . . . . 102 Explosive 1863 | . . . . . 300 . . 329 . . . 556 . . . 379 . 56 . . . 243 Electromagnetic . | . . . . . . . . . . . . . . . . . . . . . . . Impact 349 | . . . . . . . . . . . . . . . 181 168 . . . . . . Slashing 2188 | . . . . . . 164 495 . 76 223 . 77 . . 881 . . 46 85 . . 141 Piercing . | . . . . . . . . . . . . . . . . . . . . . . . Highest Corruption 35 | . . . . . . . . . . . . 13 13 13 13 13 . . 7 7 . 35 Average Corruption 10 | . . . . . . . . . . . . 9 13 13 13 13 . . 7 7 . 13 Corruption Purged . | . . . . . . . . . . . . . . . . . . . . . . . Corruption Blocked . | . . . . . . . . . . . . . . . . . . . . . . . Effects 24 | . . . . . . . . . . . . 3 3 2 4 4 . . . 4 . 4 Message Errors 9 | . . . . . . . . . . . . 2 2 1 1 1 . . . 1 . 1 Matter Fused 5 | . . . . . . . . . . . . 1 . 1 1 1 . . . 1 . . Heat Flow Errors 4 | . . . . . . . . . . . . . . . . 1 . . . 2 . 1 Energy Discharges 2 | . . . . . . . . . . . . . 1 . 1 . . . . . . . Parts Rejected 1 | . . . . . . . . . . . . . . . . 1 . . . . . . Data Loss (minor) 2 | . . . . . . . . . . . . . . . 1 . . . . . . 1 Misdirections 1 | . . . . . . . . . . . . . . . . . . . . . . 1 Overload Shots . | . . . . . . . . . . . . . . . . . . . . . . . Overflow Damage 1243 | . . . . . 89 94 104 32 16 208 . 83 . . 520 90 . . . . . 7 Projectiles . | . . . . . . . . . . . . . . . . . . . . . . . Explosions 262 | . . . . . 89 . . 32 . . . 83 . . . 58 . . . . . . Melee 981 | . . . . . . 94 104 . 16 208 . . . . 520 32 . . . . . 7 Knockbacks 2 | . . . . . . 1 . . . . . . . . . 1 . . . . . . Impact 2 | . . . . . . 1 . . . . . . . . . 1 . . . . . . Kinetic . | . . . . . . . . . . . . . . . . . . . . . . . Secondary . | . . . . . . . . . . . . . . . . . . . . . . . Self-Inflicted Damage 247 | . . . . . . 1 . . . . . 134 . . . 63 . . . . . 49 Shots 4 | . . . . . . . . . . . . 2 . . . 1 . . . . . 1 Rammed 7 | . 1 2 . . 1 3 . . . . . . . . . . . . . . . . Targets Rammed 9 | . 1 3 . . 2 3 . . . . . . . . . . . . . . . . Kicked . | . . . . . . . . . . . . . . . . . . . . . . . Crushed 2 | . . 1 . . 1 . . . . . . . . . . . . . . . . . Highest Temperature 315 | . 24 239 193 . 271 122 1 . . . . 80 . . . 150 . . 42 243 3 315 Average Temperature 74 | . 6 73 57 . 110 38 1 . . . . 36 . . . 79 . . 11 79 3 96 Received Heat Transfer 519 | . 18 96 12 . 144 108 45 . . 30 12 36 . . . . . . . . 9 9 Effects 3 | . . . . . 3 . . . . . . . . . . . . . . . . . Energy Bleed 1 | . . . . . 1 . . . . . . . . . . . . . . . . . Interference 2 | . . . . . 2 . . . . . . . . . . . . . . . . . Siege Activations . | . . . . . . . . . . . . . . . . . . . . . . . Robots Corrupted . | . . . . . . . . . . . . . . . . . . . . . . . Combat Hostiles . | . . . . . . . . . . . . . . . . . . . . . . . Parts Fried 1 | . . . . . . . . . . . . . . . 1 . . . . . . . Impact Corruptions 9 | . . . . . . . . . . . . . . . 7 2 . . . . . . Robots Melted 1 | . . . . . . . . . . . . . . . . . . . . . . 1 Combat Hostiles 1 | . . . . . . . . . . . . . . . . . . . . . . 1 Parts Melted 2 | . . . . . . . . . . . . . . . . . . . . . . 2 Heat Transferred 1080 | . . 370 110 . 370 80 . . . . . 100 . . . . . . . . . 50 Parts Sabotaged . | . . . . . . . . . . . . . . . . . . . . . . . Parts Stolen . | . . . . . . . . . . . . . . . . . . . . . . . Parts Stripped . | . . . . . . . . . . . . . . . . . . . . . . . Power Chain Reactions . | . . . . . . . . . . . . . . . . . . . . . . . Alert | -11 -10 -9 -9 -9 -8 -8 -7 -7 -7 -6 -6 -5 -5 -5 -5 -4 -4 -4 -3 -3 -2 -1 ------- Run | Yrd Mat Mat Min Exi Min Mat Fac Low Dat Pro Fac Fac Upp Upp Zhi Pro Fac DSF Res Tes Res Acc Peak Influence 615 | . 222 124 335 . 404 268 254 . . . 90 615 . . . . 215 248 204 239 152 345 Initial 215 | . . . 39 . . 91 . . . . 59 44 . . . . 215 150 133 115 134 100 Average 141 | . 47 52 248 . 227 132 93 . . . 63 334 . . . . 215 219 165 178 137 193 Maximum Alert Level 2 | . 1 . 1 . 2 1 1 . . . . 2 . . . . 1 1 1 1 . 1 Low Security (%) 68 | 100 98 100 15 . 22 75 90 . . . 100 40 . . . . . 27 75 70 100 45 Level 1 29 | . 1 . 84 . 77 24 9 . . . . 19 . . . . 100 72 25 29 . 54 Level 2 2 | . . . . . . . . . . . . 40 . . . . . . . . . . Level 3 . | . . . . . . . . . . . . . . . . . . . . . . . Level 4 . | . . . . . . . . . . . . . . . . . . . . . . . Level 5 . | . . . . . . . . . . . . . . . . . . . . . . . High Security . | . . . . . . . . . . . . . . . . . . . . . . . Max Security . | . . . . . . . . . . . . . . . . . . . . . . . Squads Dispatched 27 | . 1 2 1 . . 2 9 . . . . 7 . . . . . 1 . 1 . 3 Investigation 15 | . 1 . 1 . . 1 7 . . . . 5 . . . . . . . . . . Extermination 2 | . . . . . . . 1 . . . . 1 . . . . . . . . . . Reinforcement 6 | . . 2 . . . 1 1 . . . . . . . . . . 1 . 1 . . Assault 1 | . . . . . . . . . . . . 1 . . . . . . . . . . Garrison . | . . . . . . . . . . . . . . . . . . . . . . . Intercept 3 | . . . . . . . . . . . . . . . . . . . . . . 3 Searches Triggered . | . . . . . . . . . . . . . . . . . . . . . . . Construction Impeded . | . . . . . . . . . . . . . . . . . . . . . . . Haulers Reinforced . | . . . . . . . . . . . . . . . . . . . . . . . Active Scanning Responses . | . . . . . . . . . . . . . . . . . . . . . . . Cargo Convoy Interrupts . | . . . . . . . . . . . . . . . . . . . . . . . Stealth | -11 -10 -9 -9 -9 -8 -8 -7 -7 -7 -6 -6 -5 -5 -5 -5 -4 -4 -4 -3 -3 -2 -1 --------- Run | Yrd Mat Mat Min Exi Min Mat Fac Low Dat Pro Fac Fac Upp Upp Zhi Pro Fac DSF Res Tes Res Acc Distress Signals 10 | . . . . . . 2 4 . . . . 2 . . . . . . . . . 2 Communications Jammed . | . . . . . . . . . . . . . . . . . . . . . . . Distress Signals . | . . . . . . . . . . . . . . . . . . . . . . . Times Spotted 202 | . 14 9 15 . 19 25 30 4 3 8 1 23 3 4 . 8 . 5 1 13 1 16 Peak Tracking Total 14 | . 3 2 4 . 4 5 9 4 3 4 1 14 3 4 . 5 . 4 . 11 1 6 Tactical Retreats 22 | . . . . . 1 . 12 . . 3 . 2 . 1 . . . . . . . 3 Traps | -11 -10 -9 -9 -9 -8 -8 -7 -7 -7 -6 -6 -5 -5 -5 -5 -4 -4 -4 -3 -3 -2 -1 ------- Run | Yrd Mat Mat Min Exi Min Mat Fac Low Dat Pro Fac Fac Upp Upp Zhi Pro Fac DSF Res Tes Res Acc Traps Triggered 2 | . 1 . . . . . . . . . . 1 . . . . . . . . . . Indirectly . | . . . . . . . . . . . . . . . . . . . . . . . Trap Hack Attempts . | . . . . . . . . . . . . . . . . . . . . . . . Triggered . | . . . . . . . . . . . . . . . . . . . . . . . Disarmed . | . . . . . . . . . . . . . . . . . . . . . . . Reprogrammed . | . . . . . . . . . . . . . . . . . . . . . . . Reused . | . . . . . . . . . . . . . . . . . . . . . . . Traps Extracted . | . . . . . . . . . . . . . . . . . . . . . . . Installed . | . . . . . . . . . . . . . . . . . . . . . . . Triggered . | . . . . . . . . . . . . . . . . . . . . . . . Machines | -11 -10 -9 -9 -9 -8 -8 -7 -7 -7 -6 -6 -5 -5 -5 -5 -4 -4 -4 -3 -3 -2 -1 ---------- Run | Yrd Mat Mat Min Exi Min Mat Fac Low Dat Pro Fac Fac Upp Upp Zhi Pro Fac DSF Res Tes Res Acc Machines Disabled 8 | . . . . . . . . . . . . 4 . . . . . . . 2 . 2 Max in Single Turn 2 | . . . . . . . . . . . . 2 . . . . . . . 1 . 1 Garrison Access 2 | . . . . . . . 2 . . . . . . . . . . . . . . . Machines Repaired . | . . . . . . . . . . . . . . . . . . . . . . . Machines Dismantled . | . . . . . . . . . . . . . . . . . . . . . . . Machines Sabotaged . | . . . . . . . . . . . . . . . . . . . . . . . Overloaded Fab Kills . | . . . . . . . . . . . . . . . . . . . . . . . Hacking | -11 -10 -9 -9 -9 -8 -8 -7 -7 -7 -6 -6 -5 -5 -5 -5 -4 -4 -4 -3 -3 -2 -1 --------- Run | Yrd Mat Mat Min Exi Min Mat Fac Low Dat Pro Fac Fac Upp Upp Zhi Pro Fac DSF Res Tes Res Acc Machines Accessed 70 | . 8 4 2 1 . 6 20 . 4 . 1 11 . . 2 1 1 . 1 5 . 3 Terminals 42 | . 8 4 . . . 5 10 . . . . 6 . . . 1 1 . 1 4 . 2 Fabricators 7 | . . . . . . . 5 . . . . 2 . . . . . . . . . . Repair Stations 1 | . . . . . . . 1 . . . . . . . . . . . . . . . Recycling Units 4 | . . . . . . . 1 . . . 1 1 . . . . . . . . . 1 Scanalyzers 5 | . . . . . . 1 1 . . . . 2 . . . . . . . 1 . . Garrison Access 2 | . . . . . . . 2 . . . . . . . . . . . . . . . Total Hacks 206 | . 33 11 2 1 . 21 57 . 18 . 1 28 . . 7 2 1 . 2 14 . 8 Successful 138 | . 12 8 2 1 . 9 42 . 18 . 1 18 . . 7 2 1 . 1 10 . 6 Failed 66 | . 21 3 . . . 11 14 . . . . 10 . . . . . . 1 4 . 2 Catastrophic 2 | . . 1 . . . . . . . . . 1 . . . . . . . . . . Database Lockouts 2 | . . . . . . 1 1 . . . . . . . . . . . . . . . Manual 100 | . 28 12 . . . 14 30 . . . . 11 . . . . . . 2 2 . 1 Terminals 130 | . 33 11 . . . 17 31 . . . . 14 . . . 2 1 . 2 13 . 6 Fabricators 23 | . . . . . . . 16 . . . . 7 . . . . . . . . . . Repair Stations 2 | . . . . . . . 2 . . . . . . . . . . . . . . . Recycling Units 5 | . . . . . . . 1 . . . 1 1 . . . . . . . . . 2 Scanalyzers 15 | . . . . . . 4 4 . . . . 6 . . . . . . . 1 . . Garrison Access 3 | . . . . . . . 3 . . . . . . . . . . . . . . . Terminal Hacks 75 | . 9 4 2 1 . 4 14 . 18 . . 2 . . 7 2 1 . . 7 . 4 Record 14 | . . . . 1 . . . . 11 . . . . . . 2 . . . . . . Part Schematic 10 | . 1 . . . . 1 1 . 3 . . 1 . . 3 . . . . . . . Robot Schematic 1 | . . . . . . . . . 1 . . . . . . . . . . . . . Robot Analysis 9 | . 6 3 . . . . . . . . . . . . . . . . . . . . Prototype ID Bank 8 | . . . . . . . . . 3 . . . . . 4 . . . . 1 . . Open Door 3 | . . . 2 . . . . . . . . . . . . . . . . . . 1 Open DSF 1 | . . . . . . . . . . . . . . . . . 1 . . . . . Level Access Points 1 | . . . . . . . . . . . . . . . . . . . . 1 . . Branch Access Points 2 | . . . . . . . . . . . . 1 . . . . . . . 1 . . Machine Index 1 | . . . . . . . . . . . . . . . . . . . . 1 . . Terminal Index 2 | . . . . . . . 1 . . . . . . . . . . . . 1 . . Fabricator Index 2 | . . . . . . . 2 . . . . . . . . . . . . . . . Alert Level 6 | . . 1 . . . 1 3 . . . . . . . . . . . . 1 . . Unreport Threat 4 | . 1 . . . . 2 1 . . . . . . . . . . . . . . . Locate Traps 4 | . 1 . . . . . 2 . . . . . . . . . . . . 1 . . Recall Investigation 3 | . . . . . . . 3 . . . . . . . . . . . . . . . Recall Extermination 1 | . . . . . . . 1 . . . . . . . . . . . . . . . Hauler Manifests 1 | . . . . . . . . . . . . . . . . . . . . . . 1 Registered Components 1 | . . . . . . . . . . . . . . . . . . . . . . 1 Registered Prototypes 1 | . . . . . . . . . . . . . . . . . . . . . . 1 Fabricator Hacks 15 | . . . . . . . 11 . . . . 4 . . . . . . . . . . Load Schematic 8 | . . . . . . . 6 . . . . 2 . . . . . . . . . . Build 7 | . . . . . . . 5 . . . . 2 . . . . . . . . . . Repair Station Hacks 2 | . . . . . . . 2 . . . . . . . . . . . . . . . Scan Component 1 | . . . . . . . 1 . . . . . . . . . . . . . . . Repair 1 | . . . . . . . 1 . . . . . . . . . . . . . . . Recycling Unit Hacks 4 | . . . . . . . 1 . . . 1 1 . . . . . . . . . 1 Retrieve Components 4 | . . . . . . . 1 . . . 1 1 . . . . . . . . . 1 Scanalyzer 10 | . . . . . . 1 2 . . . . 6 . . . . . . . 1 . . Insert Component 5 | . . . . . . 1 1 . . . . 2 . . . . . . . 1 . . Analyze 5 | . . . . . . . 1 . . . . 4 . . . . . . . . . . Garrison Access Hacks 2 | . . . . . . . 2 . . . . . . . . . . . . . . . Seal Access 2 | . . . . . . . 2 . . . . . . . . . . . . . . . Unauthorized Hacks 30 | . 3 4 . . . 4 10 . . . . 5 . . . . . . 1 2 . 1 Terminals 24 | . 3 4 . . . 4 6 . . . . 3 . . . . . . 1 2 . 1 Assimilate 5 | . 1 . . . . 2 2 . . . . . . . . . . . . . . . Botnet 16 | . 2 3 . . . 2 3 . . . . 2 . . . . . . 1 2 . 1 Operators 3 | . . 1 . . . . 1 . . . . 1 . . . . . . . . . . Fabricators 6 | . . . . . . . 4 . . . . 2 . . . . . . . . . . Prioritize 5 | . . . . . . . 3 . . . . 2 . . . . . . . . . . Recompile 1 | . . . . . . . 1 . . . . . . . . . . . . . . . Repair Stations . | . . . . . . . . . . . . . . . . . . . . . . . Recycling Units . | . . . . . . . . . . . . . . . . . . . . . . . Scanalyzers . | . . . . . . . . . . . . . . . . . . . . . . . Garrison Access . | . . . . . . . . . . . . . . . . . . . . . . . Data Cores Recovered 1 | . 1 . . . . . . . . . . . . . . . . . . . . . Used . | . . . . . . . . . . . . . . . . . . . . . . . Hacking Detections 47 | . 8 4 . . . 4 16 . . . . 9 . . . . 1 . 1 3 . 1 Full Trace Events 11 | . . . . . . 1 6 . . . . 4 . . . . . . . . . . Feedback Events . | . . . . . . . . . . . . . . . . . . . . . . . Feedback Blocked . | . . . . . . . . . . . . . . . . . . . . . . . Robot Schematics Acquired 1 | . . . . . . . . . 1 . . . . . . . . . . . . . Robots Built . | . . . . . . . . . . . . . . . . . . . . . . . Authchips . | . . . . . . . . . . . . . . . . . . . . . . . Time . | . . . . . . . . . . . . . . . . . . . . . . . Total Robot Build Rating . | . . . . . . . . . . . . . . . . . . . . . . . Part Schematics Acquired 13 | . 1 . . . . 1 2 . 3 . . 3 . . 3 . . . . . . . Parts Built 7 | . . . . . . . 5 . . . . 2 . . . . . . . . . . Authchips 1 | . . . . . . . 1 . . . . . . . . . . . . . . . Time 387 | . . . . . . . 300 . . . . 87 . . . . . . . . . . Total Part Build Rating 25 | . . . . . . . 19 . . . . 6 . . . . . . . . . . Parts Repaired 1 | . . . . . . . 1 . . . . . . . . . . . . . . . Time 38 | . . . . . . . 38 . . . . . . . . . . . . . . . Parts Recycled . | . . . . . . . . . . . . . . . . . . . . . . . Recycled Matter . | . . . . . . . . . . . . . . . . . . . . . . . Retrieved Matter . | . . . . . . . . . . . . . . . . . . . . . . . Retrieved Components 6 | . . . . . . . 1 . . . 2 1 . . . . . . . . . 2 Parts Scanalyzed 4 | . . . . . . 1 1 . . . . 2 . . . . . . . . . . Part Schematics Acquired 3 | . . . . . . . 1 . . . . 2 . . . . . . . . . . Parts Damaged . | . . . . . . . . . . . . . . . . . . . . . . . Bothacking | -11 -10 -9 -9 -9 -8 -8 -7 -7 -7 -6 -6 -5 -5 -5 -5 -4 -4 -4 -3 -3 -2 -1 ------------ Run | Yrd Mat Mat Min Exi Min Mat Fac Low Dat Pro Fac Fac Upp Upp Zhi Pro Fac DSF Res Tes Res Acc Used RIF Installer . | . . . . . . . . . . . . . . . . . . . . . . . Robots Hacked . | . . . . . . . . . . . . . . . . . . . . . . . Non-combat . | . . . . . . . . . . . . . . . . . . . . . . . Combat . | . . . . . . . . . . . . . . . . . . . . . . . Robot Hacks Applied . | . . . . . . . . . . . . . . . . . . . . . . . Relay Couplers Released . | . . . . . . . . . . . . . . . . . . . . . . . Fabnet Peak Effective % . | . . . . . . . . . . . . . . . . . . . . . . . Robots Rewired . | . . . . . . . . . . . . . . . . . . . . . . . Allies Hacked . | . . . . . . . . . . . . . . . . . . . . . . . Hacks Repelled . | . . . . . . . . . . . . . . . . . . . . . . . Allies | -11 -10 -9 -9 -9 -8 -8 -7 -7 -7 -6 -6 -5 -5 -5 -5 -4 -4 -4 -3 -3 -2 -1 -------- Run | Yrd Mat Mat Min Exi Min Mat Fac Low Dat Pro Fac Fac Upp Upp Zhi Pro Fac DSF Res Tes Res Acc Total Allies 12 | . 1 . 4 . . 2 2 . . . . . . . . . . . . . . 3 Largest Group 5 | . 1 1 5 4 3 1 2 . . . . . . . . . . . . . . 3 Highest-Rated Group 379 | . 10 10 81 50 34 10 52 . . . . . . . . . . . . . . 379 Highest-Rated Ally 135 | . 10 10 31 16 16 10 26 . . . . . . . . . . . . . . 135 Total Orders 6 | . . . 4 . . . 2 . . . . . . . . . . . . . . . STAY 3 | . . . 2 . . . 1 . . . . . . . . . . . . . . . FOLLOW 3 | . . . 2 . . . 1 . . . . . . . . . . . . . . . Ally Attacks 41 | . . . 22 . 19 . . . . . . . . . . . . . . . . . Total Damage 443 | . . . 221 . 222 . . . . . . . . . . . . . . . . . Kills 10 | . . . 8 . 2 . . . . . . . . . . . . . . . . . Allies Corrupted 1 | . . . . . . . 1 . . . . . . . . . . . . . . . Allies Melted . | . . . . . . . . . . . . . . . . . . . . . . . Intel | -11 -10 -9 -9 -9 -8 -8 -7 -7 -7 -6 -6 -5 -5 -5 -5 -4 -4 -4 -3 -3 -2 -1 ------- Run | Yrd Mat Mat Min Exi Min Mat Fac Low Dat Pro Fac Fac Upp Upp Zhi Pro Fac DSF Res Tes Res Acc Robot Analysis Total 143 | . 6 3 . . . . . . 134 . . . . . . . . . . . . . Derelict Logs Recovered 5 | . . . 1 . . . . 1 . . . . 2 . . 1 . . . . . . Drone Launches . | . . . . . . . . . . . . . . . . . . . . . . . Drone Recoveries . | . . . . . . . . . . . . . . . . . . . . . . . Exploration | -11 -10 -9 -9 -9 -8 -8 -7 -7 -7 -6 -6 -5 -5 -5 -5 -4 -4 -4 -3 -3 -2 -1 ------------- Run | Yrd Mat Mat Min Exi Min Mat Fac Low Dat Pro Fac Fac Upp Upp Zhi Pro Fac DSF Res Tes Res Acc Turns Passed 7478 | 60 992 632 739 202 753 1319 1063 73 145 213 105 350 76 76 84 116 4 22 92 137 10 215 Spaces Moved 7649 | 39 558 315 427 126 312 639 2006 247 185 220 165 452 226 220 161 267 5 37 179 423 27 413 Core 43 | 6 . . . . . . . . . . . . . . . . . . . . . 37 Treads 2293 | 33 558 315 427 126 276 558 . . . . . . . . . . . . . . . . Legs . | . . . . . . . . . . . . . . . . . . . . . . . Wheels 116 | . . . . . 36 80 . . . . . . . . . . . . . . . . Hover . | . . . . . . . . . . . . . . . . . . . . . . . Flight 5197 | . . . . . . 1 2006 247 185 220 165 452 226 220 161 267 5 37 179 423 27 376 Fastest Speed 6 | 50 160 160 160 160 110 106 26 26 26 29 30 26 32 32 32 32 28 22 19 13 20 6 Average Speed 73 | 143 160 160 160 160 195 172 26 26 29 87 55 30 32 32 32 32 28 28 21 20 20 26 Slowest Speed 320 | 160 160 160 160 160 320 243 106 26 99 102 102 34 32 32 32 32 28 30 104 85 20 300 Overloaded Moves 21 | . . . . . . . . . . . . . . . . . . . . 8 . 13 Propulsion Burnouts . | . . . . . . . . . . . . . . . . . . . . . . . Robots Hopped 24 | . . . . . . . 16 1 . . . . . 1 . . . . . 4 1 1 Cave-ins Triggered 2 | . . . . . . . . . . . . 1 . . . . . . 1 . . . Teleports 1 | . . . . . . . . . . . . . . . . . . . . . . 1 Exploration Rate (%) 43 | 3 92 30 82 49 54 47 46 37 80 42 7 22 54 51 63 58 . 51 3 65 1 17 Regions Visited 22 Branch Regions 11 Pre-discovered Areas 27 | . . . 1 1 . . . . 24 . . . . . . 1 . . . . . . Known Exits Taken 10 | . . . . . . . . . . . 1 1 1 1 1 1 1 . 1 1 1 . Unknown Exits Taken 11 | 1 1 1 1 1 1 1 1 1 1 1 . . . . . . . . . . . . Scrap Searched 15 | . . . 2 . 1 . . 1 . 1 . . 4 2 . 4 . . . . . . Spaces Dug 166 | . . . . . . 1 32 17 1 . 1 97 . 1 . . . . 3 8 1 4 Terrain Destroyed 363 | . . . . . 16 1 32 38 1 . 1 148 . 1 . 18 . 4 3 8 1 91 Melee 87 | . . . . . . 1 32 . 1 . 1 35 . 1 . . . . 3 8 1 4 Projectile 4 | . . . . . . . . . . . . . . . . . . . . . . 4 AOE 272 | . . . . . 16 . . 38 . . . 113 . . . 18 . 4 . . . 83 Terrain Rammed . | . . . . . . . . . . . . . . . . . . . . . . . Walls Destroyed . | . . . . . . . . . . . . . . . . . . . . . . . Machines Disabled . | . . . . . . . . . . . . . . . . . . . . . . . Actions | -11 -10 -9 -9 -9 -8 -8 -7 -7 -7 -6 -6 -5 -5 -5 -5 -4 -4 -4 -3 -3 -2 -1 --------- Run | Yrd Mat Mat Min Exi Min Mat Fac Low Dat Pro Fac Fac Upp Upp Zhi Pro Fac DSF Res Tes Res Acc Total 8936 | 42 625 399 461 127 393 778 2452 252 247 234 175 589 228 222 178 282 6 45 224 454 28 495 Wait 678 | . 24 41 8 2 34 24 375 1 36 11 7 68 . . . . . . 13 . 1 33 Move 7581 | 38 557 314 426 125 311 638 1975 244 184 219 164 450 225 217 160 266 4 36 178 415 24 411 Hop 21 | . . . . . . . 14 1 . . . . . 1 . . . . . 3 1 1 Pick Up 83 | 1 11 5 2 . 4 15 13 . 3 . . 3 1 3 3 2 . 3 3 5 . 6 Fast Attach 67 | 3 5 3 1 . 3 5 8 . . . 3 9 1 . 3 1 . . 11 5 . 6 Attach 45 | . . 2 . . . 7 6 1 1 . . 5 . . . 3 2 2 5 1 1 9 Detach 13 | . . 1 . . . 1 2 1 . . . 1 . . . 1 . . 3 3 . . Swap 33 | . 1 2 2 . 2 15 1 1 . 1 . 1 . . . 1 . 1 . 3 . 2 Drop 92 | . 6 3 4 . 2 29 10 1 4 . . 4 1 . 3 . . 1 7 9 . 8 Fire 157 | . 20 25 18 . 35 38 . 2 . . . 7 . . . 1 . 1 . . . 10 Melee 156 | . . . . . . 3 48 . 19 3 1 40 . 1 9 7 . 1 4 10 1 9 Ram 1 | . . . . . . 1 . . . . . . . . . . . . . . . . Kick . | . . . . . . . . . . . . . . . . . . . . . . . Crush 8 | . 1 3 . . 2 2 . . . . . . . . . . . . . . . . Escape Stasis 1 | . . . . . . . . . . . . 1 . . . . . . . . . . Rewire . | . . . . . . . . . . . . . . . . . . . . . . . Trap . | . . . . . . . . . . . . . . . . . . . . . . . Miscellaneous . | . . . . . . . . . . . . . . . . . . . . . . . Route ------- -11/Scrapyard -10/Materials (discovered 4 exits: *Mat x3 / [*Min]) -9/Materials -9/Mines (discovered 3 exits: *Mat x2 / *Exi) -9/Exiles -8/Mines -8/Materials (discovered 2 exits: *Fac x2) -7/Factory (discovered 2 exits: [*Low x2]) -7/Lower Caves -7/Data Miner -6/Proximity Caves -6/Factory -5/Factory (discovered 3 exits: *Fac / *Upp x2) -5/Upper Caves -5/Upper Caves (discovered 2 exits: *Fac / *Zhi) -5/Zhirov -4/Proximity Caves -4/Factory -4/DSF -3/Research -3/Testing -2/Research -1/Access (discovered 2 exits: Sur / Com) History --------- Turn | Location | Event 22 | -11/Scrapyard | Discovered new exit (range 16) 61 | -11/Scrapyard | Entered Materials 304 | -10/Materials | Build established: Mutant 602 | -10/Materials | Discovered new exit (range 14) 730 | -10/Materials | Discovered new exit (range 8) 843 | -10/Materials | Discovered new exit (range 5) 1034 | -10/Materials | Discovered new exit (range 13) 1053 | -10/Materials | Entered another Materials area 1053 | -9/Materials | Accompanied by 1 ally 1053 | -9/Materials | Evolved 2 slots: Propulsion x1, Utility x1 1464 | -9/Materials | Discovered new exit (range 8) 1685 | -9/Materials | Entered Mines 1685 | -9/Mines | Accompanied by 1 ally 1688 | -9/Mines | Received a Mining Laser from a helpful Derelict 1799 | -9/Mines | Learned location of Storage (-9) 1848 | -9/Mines | Assisted by bots powering up and referring to "LRC-V3" 1891 | -9/Mines | Met a Derelict who couldn't figure out how to use a Trap Extractor 1958 | -9/Mines | Met a Derelict shopkeep closing up shop 2070 | -9/Mines | Discovered new exit (range 8) 2079 | -9/Mines | Discovered new exit (range 9) 2140 | -9/Mines | Build established: Commander-Mutant 2409 | -9/Mines | Deemed a non-threat by the Exiles lab entrance 2409 | -9/Mines | Discovered new exit (range 5) 2424 | -9/Mines | Entered Exiles 2424 | -9/Exiles | Accompanied by 4 allies 2463 | -9/Exiles | Met 8R-AWN 2490 | -9/Exiles | Met EX-HEX 2533 | -9/Exiles | Met EX-BIN 2554 | -9/Exiles | Met EX-DEC 2560 | -9/Exiles | Learned location of Zion (-6) 2610 | -9/Exiles | Discovered new exit (range 10) 2626 | -9/Exiles | Entered Mines 2626 | -8/Mines | Accompanied by 4 allies 2926 | -8/Mines | Build established: Mutant 3032 | -8/Mines | Discovered new exit (range 9) 3379 | -8/Mines | Entered Materials 3379 | -8/Materials | Evolved 2 slots: Propulsion x1, Utility x1 3641 | -8/Materials | Build established: Scavenger-Mutant 3766 | -8/Materials | Central database locked down 4424 | -8/Materials | Discovered new exit (range 3) 4501 | -8/Materials | Build established: Mutant 4659 | -8/Materials | Discovered new exit (range 4) 4698 | -8/Materials | Entered Factory 4698 | -7/Factory | Evolved 2 slots: Utility x2 4735 | -7/Factory | Discovered new exit (range 15) 4775 | -7/Factory | Central database locked down 4892 | -7/Factory | Discovered new exit (range 8) 4973 | -7/Factory | Build established: Hacker-Sprinter 5032 | -7/Factory | Fabricated Imp. VTOL Module? 5043 | -7/Factory | Fabricated Imp. VTOL Module? 5310 | -7/Factory | Repaired Cesium-ion Thruster 5385 | -7/Factory | Fabricated Lrn. Sensor Array (x1) 5444 | -7/Factory | Fabricated Imp. VTOL Module (x1) 5657 | -7/Factory | Fabricated Imp. VTOL Module? 5761 | -7/Factory | Entered Lower Caves 5779 | -7/Lower Caves | Learned location of 1 exit from Factory 5811 | -7/Lower Caves | A Derelict revealed a hidden shortcut to meet someone special 5834 | -7/Lower Caves | Entered Data Miner 5834 | -7/Data Miner | Discovered new exit (range 6) 5839 | -7/Data Miner | Met Data Miner 5845 | -7/Data Miner | Learned location of Section 7 (-2) 5845 | -7/Data Miner | Acquired the access code to Warlord's prototype stash 5849 | -7/Data Miner | Received God Mode back door access code from Data Miner 5876 | -7/Data Miner | Interfaced with the Data Conduit 5979 | -7/Data Miner | Entered Proximity Caves 6015 | -6/Proximity Caves | Lost 4 parts (2p2n) 6144 | -6/Proximity Caves | Spotted B-75 Beast 6162 | -6/Proximity Caves | Core integrity fell below 50% 6180 | -6/Proximity Caves | Discovered new exit (range 15) 6192 | -6/Proximity Caves | Entered Factory 6192 | -6/Factory | Evolved 2 slots: Utility x2 6193 | -6/Factory | Identified exit to Factory 6194 | -6/Factory | Loaded intel: 304 machine locations 6297 | -6/Factory | Entered another Factory area 6297 | -5/Factory | Evolved 2 slots: Propulsion x1, Utility x1 6298 | -5/Factory | Loaded intel: 226 machine locations 6380 | -5/Factory | Fabricated Imp. VTOL Module (x1) 6413 | -5/Factory | Identified exit to Upper Caves 6432 | -5/Factory | Found Mni. Smartbomb Launcher 6478 | -5/Factory | Lost 3 parts (1n1u1w) 6511 | -5/Factory | Fabricated Imp. VTOL Module? 6523 | -5/Factory | Crushed by falling debris 6524 | -5/Factory | System corruption reached 10% 6527 | -5/Factory | Discovered new exit (range 20) 6535 | -5/Factory | Identified exit to Factory 6554 | -5/Factory | Lost 4 parts (2n2w) 6597 | -5/Factory | First assault squad dispatched 6647 | -5/Factory | Entered Upper Caves 6664 | -5/Upper Caves | Learned Factory garrison access intel 6669 | -5/Upper Caves | Learned Factory security intel 6709 | -5/Upper Caves | Discovered new exit (range 12) 6722 | -5/Upper Caves | Identified exit to Upper Caves 6723 | -5/Upper Caves | Attracted the attention of an 0b10 checkpoint 6723 | -5/Upper Caves | Entered another Upper Caves area 6723 | -5/Upper Caves | Discovered exit to Factory (range 7) 6724 | -5/Upper Caves | Encountered a Warlord checkpoint 6795 | -5/Upper Caves | Discovered new exit (range 13) 6799 | -5/Upper Caves | Identified exit to Zhirov 6799 | -5/Upper Caves | Entered Zhirov 6799 | -5/Zhirov | Discovered new exit (range 3) 6805 | -5/Zhirov | Met Zhirov 6816 | -5/Zhirov | Zhirov requested help retrieving the SGEMP Prototype 6821 | -5/Zhirov | Found Alien Artifact 6826 | -5/Zhirov | Found Alien Artifact 6826 | -5/Zhirov | Identified Integrated Reactor 6826 | -5/Zhirov | Installed Integrated Reactor, increased core energy generation (+10) 6883 | -5/Zhirov | Identified exit to Proximity Caves 6883 | -5/Zhirov | Entered Proximity Caves 6960 | -4/Proximity Caves | Spotter reported a threat 6997 | -4/Proximity Caves | Discovered exit to Factory (range 7) 6999 | -4/Proximity Caves | Entered Factory 6999 | -4/Factory | Evolved 2 slots: Propulsion x1, Utility x1 7001 | -4/Factory | Loaded intel: 280 machine locations 7002 | -4/Factory | Loaded intel: 4 garrison access locations 7003 | -4/Factory | Identified exit to DSF 7003 | -4/Factory | Entered DSF 7004 | -4/DSF | Loaded intel: 3 machine locations 7006 | -4/DSF | Discovered new exit (range 19) 7016 | -4/DSF | Additional patrols routed to DSF 7025 | -4/DSF | Identified exit to Research 7025 | -4/DSF | Entered Research 7025 | -3/Research | Evolved 2 slots: Utility x2 7026 | -3/Research | Loaded intel: 104 machine locations 7069 | -3/Research | Discovered new exit (range 12) 7077 | -3/Research | Found Adv. Powered Armor 7099 | -3/Research | Crushed by falling debris 7117 | -3/Research | Identified exit to Testing 7117 | -3/Research | Entered Testing 7118 | -3/Testing | Loaded intel: 70 machine locations 7130 | -3/Testing | Lost 3 parts (2n1u) 7140 | -3/Testing | Found Prototype Energy Cannon 7140 | -3/Testing | Identified Null Cannon 7148 | -3/Testing | Found Prototype Launcher 7148 | -3/Testing | Identified Z-bomb Delivery System 7156 | -3/Testing | Found Fusion Bomb Launcher 7165 | -3/Testing | Identified exit to Research 7172 | -3/Testing | Found Exp. System Shield 7185 | -3/Testing | Found Exp. Hacking Suite 7194 | -3/Testing | Identified Transdimensional Reconstructor 7211 | -3/Testing | Found Exp. Sensor Array 7221 | -3/Testing | Spotted Striker 7221 | -3/Testing | Spotted Striker 7223 | -3/Testing | Spotted Alpha 7 7224 | -3/Testing | Stole the SGEMP Prototype 7254 | -3/Testing | Entered Research 7254 | -2/Research | Evolved 2 slots: Propulsion x1, Utility x1 7255 | -2/Research | Loaded intel: 132 machine locations 7262 | -2/Research | Discovered new exit (range 6) 7264 | -2/Research | Identified exit to Access 7264 | -2/Research | Entered Access 7264 | -1/Access | Evolved 2 slots: Utility x1, Weapon x1 7265 | -1/Access | Loaded intel: 120 machine locations 7265 | -1/Access | Delivered the SGEMP Prototype to Zhirov 7265 | -1/Access | Zhirov transferred Access data 7266 | -1/Access | Loaded intel: 120 machine locations 7266 | -1/Access | Loaded intel: 73 trap records 7266 | -1/Access | Identified exit to Surface 7266 | -1/Access | Discovered exit to Surface (range 147) 7266 | -1/Access | Identified exit to Command 7266 | -1/Access | Discovered exit to Command (range 205) 7371 | -1/Access | Spotted B-99 Colossus 7374 | -1/Access | Intercept squad dispatched 7379 | -1/Access | Spotted Tracker 7379 | -1/Access | Spotted Tracker 7391 | -1/Access | Destroyed Tracker 7399 | -1/Access | Spotted Combat Programmer 7407 | -1/Access | Spotted Combat Programmer 7430 | -1/Access | Warped through subspace 7449 | -1/Access | System corruption reached 10% 7452 | -1/Access | Core integrity fell below 50% 7472 | -1/Access | Core integrity fell below 20% 7472 | -1/Access | System corruption reached 30% 7479 | -1/Access | Destroyed by Combat Programmer with EMDS Last Messages --------------- Penetrated by EMDS Slug. Med. Storage Unit destroyed. Penetrated by EMDS Slug. Cld. Q-thruster destroyed. EMDS Slug penetrates Wall. Penetrated by EMDS Slug. EMDS Slug penetrates Wall. ZAR:XV1RTGX#QKEIIWZB9UMABMRSCSH,T= Exp. Hacking Suite destroyed. Penetrated by EMDS Slug. Q-thruster destroyed. Penetrated by EMDS Slug. Exp. Power Amplifier destroyed. Penetrated by EMDS Slug. System corrupted: Heat flow error (+187). Transmission Jammer destroyed. Penetrated by EMDS Slug. Map ----- +----------------------------------------------------+ | #### # # ### # " | | #### # ## ######### # | | ########+#### ####### # | | ######## #### # ####### # | | ^ # # ####### ######### | | ########## # # ####### ######### | | ####### # # ####### # | | " ####### # ######## # | | """ ####### # ######## # | | """ ########### ## ######## # | | " ###### # ############ # | | ###### ### ##### # | | ###### ### ##### # "" "" | | ###### ### ##### # ""R"" | | ######## ###### ##### ##### # """" | | ########## ###### ######## ##### / | | ########## ####### ######### ##### # | | ########## ####### ### ### ##### ######### | | ! ### ###### ### > ### ##### ####### | | ### ######""" "## """ " | | ###+####### ### """ " | | # #### ### """ " | | + #### ### ### ############### | | # #### ### #### ################ | | # #### ###""#### ### # | | ########### ###p@ ### ### # | | ####+### ### g p #### ### + | | ### s ### ### # | | ############## ### # | | ############## ### # | | ##################### "" # | | # ############# "" # | | ######## # ## ### """""" # | | ########## ### ## ### """""" # | | ########## ### ## " ### "" # | | ########## #####+###### """ ### "" # | | ########## ##### ###### """ ###+############ | | # ##### ###### " ### ############ | | # ##### ###### ### ############ | | " # ###### ### ############ | | """ + #####+###### ### ############ | | """ # ##### ##+######## | | " # ##### # | | # ##### + | | # ##### # | | ########## ##### # | | ########## ##### # | | ########## ############ | | ######### ########## | | ######### | +----------------------------------------------------+ Best States ------------- Heat Dissipation 52 Energy Generation 43 Energy Capacity 300 Matter Stores 300 Matter Capacity 300 Sight Range 22 Robot Scan Range 20 Terrain Scan Density 10 Jamming Range 12 Power Amplification 40 Additional Mass Support 12 Armor Coverage 400 Utility Shielding 90 Evasion (%) 66 Targeting Accuracy 8 Recoil Reduction 4 Offensive Hacking 40 Defensive Hacking 16 Authchip Count 1 Item Schematics ----------------- ECM Suite | -10/Materials | Hacked Scythe | -8/Materials | Hacked Cesium-ion Thruster | -7/Factory | Scanalyzed Imp. VTOL Module | -7/Factory | Hacked Lgt. Regenerative Plating | -7/Data Miner | Free Combat Drone Bay | -7/Data Miner | Free Gravity Neutralizer | -7/Data Miner | Free Adv. Power Amplifier | -5/Factory | Hacked Adv. Hacking Suite | -5/Factory | Scanalyzed Nuclear Pulse Array | -5/Factory | Scanalyzed Exp. Heat Sink | -5/Zhirov | Free Exp. Optical Array | -5/Zhirov | Free Assault Drone Bay | -5/Zhirov | Free Robot Schematics ------------------ G-50 Soldier | -7/Data Miner | Free Fabricated ------------ Imp. VTOL Module | x1 | -7/Factory | Authchip Imp. VTOL Module | x1 | -7/Factory Lrn. Sensor Array | x1 | -7/Factory | Preloaded Imp. VTOL Module | x1 | -7/Factory Imp. VTOL Module | x1 | -7/Factory Imp. VTOL Module | x1 | -5/Factory Imp. VTOL Module | x1 | -5/Factory Alien Tech Used ----------------- Integrated Reactor Transdimensional Reconstructor Achievements -------------- Special Delivery Challenges ------------ None Game ------ Seed gottagofast Manual? 1 Play Time 01:49:59 Cumulative 203.2 hours Start 2024.06.25 @ 19:01:21 End 2024.06.25 @ 20:53:35 Sessions 1 Manual Loads 0 Difficulty Rogue Special Mode None Game No. 212 Rogue 212 Adventurer 0 Explorer 0 Win Type - Total 15 Types 14/0/0/1/0/0/0/0/0 Lore% 72 Gallery% 82 Achievement% 78 Wizard Run 0 Options --------- Layout 1 ASCII 0 Keyboard 0 Movement Numpad Keybinds 0 Fullscreen 1 Font 24/Smallcaps Map View 50x35 Zoom Use 0% Tactical HUD 1 Map Filters NONE Filters NONE Steam 1 RUN: 98b61f11-10db-4ae4-8fc2-6db02b72c0e9